bitfinex/quotes_ETHUSD_20250602
["timestamp","ask_amount","ask_price","bid_price","bid_amount"]
[1748873439304,0.7531,2510.3,2510.1,0.02]
[1748873439498,0.0498054,2510.2,2510.1,0.02]
[1748873439695,0.8318,2510.8,2510.1,0.7767]
[1748873440025,10.25898108,2511.4,2511.2,3.98213435]
[1748873440302,10.25898108,2511.4,2510.7,3.98292797]
[1748873440303,0.04977973,2511.3,2510.9,4.574]
[1748873440684,0.04977973,2511.3,2511.2,3.98215992]
[1748873441002,10.30875893,2511.3,2511.0,3.9824771]
[1748873441218,11.37220697,2511.3,2511.0,4.574]
[1748873441367,11.37220697,2511.3,2510.9,8.55561016]
[1748873441574,10.25898108,2511.3,2510.9,4.573]
[1748873441765,10.25898108,2511.3,2510.9,8.55552801]
[1748873441967,0.8235,2511.5,2510.9,4.573]
[1748873442269,0.04978236,2511.4,2511.1,3.98222216]
[1748873442470,0.04978236,2511.4,2511.2,3.98205633]
[1748873442676,0.04978236,2511.4,2511.3,3.98200135]
[1748873442887,0.04977625,2511.7,2511.3,4.573]
[1748873443169,10.25898108,2511.6,2511.3,4.574]
[1748873443417,0.55,2511.4,2510.5,0.7695]
[1748873443595,10.25898108,2511.2,2510.6,5.932]
[1748873443779,0.0497843,2511.1,2511.0,3.9824771]
[1748873444005,11.03768108,2511.8,2511.0,8.55443324]
[1748873444198,4.0312391,2511.7,2511.1,3.98217574]
[1748873444377,0.04977438,2511.7,2511.2,3.98212485]
[1748873444576,0.55,2511.6,2511.2,3.98215668]
[1748873444804,0.04977752,2511.5,2511.4,3.98184279]
[1748873444991,0.8221,2512.2,2511.8,3.98113047]
[1748873445307,0.59976682,2512.1,2511.8,3.98118398]
[1748873445497,0.59976682,2512.1,2511.7,4.569]
[1748873445498,14.83949051,2512.1,2511.7,4.569]
[1748873445704,10.80898108,2512.1,2511.7,8.55034633]
[1748873446008,10.80898108,2512.1,2511.7,4.569]
[1748873446215,0.55,2512.0,2511.3,0.8229]
[1748873446411,0.04977179,2511.9,2511.6,3.98141704]
[1748873446709,0.8221,2512.2,2511.4,5.924]
[1748873446882,0.04976576,2512.1,2511.7,3.98123539]
[1748873447085,0.04976576,2512.1,2511.8,4.564]
[1748873447399,0.04976576,2512.1,2511.8,8.54511154]
[1748873447711,0.04976576,2512.1,2511.8,8.54517369]
[1748873447892,0.04976576,2512.1,2511.8,4.564]
[1748873448095,0.04976576,2512.1,2511.9,3.98103668]
[1748873448318,0.7657,2512.5,2511.8,4.564]
[1748873448495,0.04976453,2512.3,2511.9,3.9810502]
[1748873448812,0.55,2512.2,2511.8,8.54514213]
[1748873449017,0.04976552,2512.1,2511.8,8.54514213]
[1748873449237,0.04976552,2512.2,2511.9,4.564]
[1748873449396,0.04976354,2512.3,2512.2,3.98057479]
[1748873449614,0.04958729,2512.7,2512.3,3.98041635]
[1748873449783,0.04958729,2512.7,2512.2,8.54455622]
[1748873450024,0.04958729,2512.7,2512.6,3.97994109]
[1748873450242,0.02,2512.9,2512.6,8.54385907]
[1748873450412,0.02,2512.9,2512.7,3.97978144]
[1748873450722,0.06974896,2512.9,2512.7,3.9797135]
[1748873450928,0.06974896,2512.9,2512.0,0.8095]
[1748873451088,0.06974896,2512.9,2512.5,3.97999847]
[1748873451288,0.06974896,2512.9,2512.6,4.564]
[1748873451537,0.02,2512.9,2512.6,4.564]
[1748873451710,0.02,2512.9,2512.8,3.97962432]
[1748873451916,0.02,2512.9,2512.7,3.97969693]
[1748873452116,0.02,2512.9,2512.8,3.97962432]
[1748873452322,0.02,2512.9,2512.7,3.97970291]
[1748873452485,0.02,2512.9,2512.6,4.564]
[1748873452990,0.02,2512.9,2512.8,3.97962432]
[1748873453192,0.02,2512.9,2512.7,3.97970415]
[1748873453501,0.02,2512.9,2512.8,3.97962432]
[1748873453753,0.02,2512.9,2512.8,4.35727632]
[1748873453943,0.02,2512.9,2512.8,12.35727632]
[1748873454608,0.02,2512.9,2512.8,5.71327632]
[1748873454811,0.02,2512.9,2512.8,6.296652]
[1748873455000,0.02,2512.9,2512.8,9.89862432]
[1748873455423,0.02,2512.9,2512.8,5.919]
[1748873455622,0.06974684,2512.9,2512.8,5.919]
[1748873455833,0.55,2512.8,2512.3,0.7793]
[1748873456030,0.04975441,2512.7,2512.4,4.94112802]
[1748873456229,0.06975426,2512.9,2512.4,4.563]
[1748873456417,0.06975426,2512.9,2512.6,3.97987365]
[1748873456591,0.06975426,2512.9,2512.6,8.54287365]
[1748873456989,0.06975426,2512.9,2512.2,8.597]
[1748873456990,0.55,2512.8,2512.2,8.597]
[1748873457213,0.04975235,2512.7,2512.6,3.97994109]
[1748873457427,0.02,2512.9,2512.4,3.98025792]
[1748873457742,0.02,2512.9,2512.7,3.97966961]
[1748873457960,0.02,2512.9,2512.5,3.97997565]
[1748873458158,0.02,2512.9,2512.8,3.97962432]
[1748873458302,0.02,2512.9,2512.8,0.37832051]
[1748873458536,3.97983491,2512.7,2512.2,12.57750591]
[1748873458736,0.04975678,2512.6,2512.3,4.94149934]
[1748873458939,0.55,2512.5,2512.0,1.356]
[1748873459127,0.04976078,2512.4,2512.1,8.92220786]
[1748873459408,0.04976078,2512.4,2512.1,8.54368658]
[1748873459599,0.82416,2512.5,2512.2,3.98046044]
[1748873460002,0.82416,2512.5,2512.1,8.54365372]
[1748873460225,0.82416,2512.5,2512.4,3.98025792]
[1748873460411,0.04975673,2512.6,2512.1,8.54362189]
[1748873460605,10.25898108,2512.4,2511.6,0.8085]
[1748873460840,0.04976216,2512.3,2512.1,3.98065322]
[1748873461143,0.04959161,2512.3,2512.2,4.563]
[1748873461339,0.04975841,2512.5,2512.2,4.563]
[1748873461502,0.55,2512.4,2512.2,4.563]
[1748873461699,0.0497596,2512.4,2512.2,4.563]
[1748873462151,0.04975841,2512.5,2512.3,3.98033899]
[1748873462335,0.8515,2512.9,2512.7,3.97963097]
[1748873462531,0.02,2512.9,2512.3,4.74078849]
[1748873462733,0.02,2512.9,2512.6,3.97987266]
[1748873462971,0.02,2512.9,2512.8,3.97962432]
[1748873463266,0.02,2512.9,2512.8,17.68195906]
[1748873463478,0.02,2512.9,2512.8,17.68178494]
[1748873464307,0.02,2512.9,2512.8,13.11878494]
[1748873464432,0.02,2512.9,2512.8,6.47478494]
[1748873464804,0.02,2512.9,2512.8,10.27728494]
[1748873465045,0.02,2512.9,2512.8,10.27710087]
[1748873465210,0.02,2512.9,2512.5,9.952]
[1748873465413,0.02,2512.9,2512.8,3.97962432]
[1748873466246,0.55,2512.7,2511.7,2.1301]
[1748873466440,0.02,2512.9,2512.8,3.97962432]
[1748873466636,0.02,2512.9,2512.6,9.89787429]
[1748873466833,0.02,2512.9,2512.6,5.918]
[1748873467055,0.57,2512.9,2512.6,1.356]
[1748873467259,0.04975184,2512.8,2512.7,3.9797827]
[1748873467493,0.04975184,2512.8,2512.6,5.33592547]
[1748873467764,0.55,2512.7,2512.6,1.356]
[1748873468276,0.8174,2512.6,2512.5,3.9800995]
[1748873468475,0.8374,2512.9,2512.2,3.98057479]
[1748873468777,0.8374,2512.9,2512.0,0.7727]
[1748873468778,0.55,2512.7,2512.1,3.98067665]
[1748873469066,0.04975687,2512.6,2512.2,3.98050588]
[1748873469225,0.55,2512.5,2512.0,1.356]
[1748873469552,0.04976103,2512.4,2512.1,3.98066504]
[1748873469725,0.04976103,2512.4,2512.1,8.54265063]
[1748873469928,4.5301017,2512.5,2512.1,4.562]
[1748873470143,0.55,2512.3,2511.7,0.8081]
[1748873470396,0.55,2512.1,2511.8,0.37906178]
[1748873470580,0.04976773,2512.0,2511.8,3.98116993]
[1748873470997,0.04976773,2512.0,2511.9,3.9810502]
[1748873471161,0.59976549,2512.1,2511.9,3.9810502]
[1748873471479,0.04976549,2512.3,2512.1,3.98073325]
[1748873471648,0.04976549,2512.3,2512.0,4.562]
[1748873471840,0.04976549,2512.3,2512.0,8.54283212]
[1748873472043,0.8032,2512.8,2512.2,3.98047706]
[1748873472312,0.8032,2512.8,2512.7,3.9797827]
[1748873472496,0.8032,2512.8,2512.5,3.98002945]
[1748873472665,0.04975122,2512.7,2512.6,3.97994109]
[1748873472845,0.04975122,2512.7,2512.5,8.5430989]
[1748873472846,0.02,2512.9,2512.8,3.97962432]
[1748873473036,0.55,2512.8,2511.6,11.98137595]
[1748873473242,0.55,2512.8,2512.3,3.98034533]
[1748873473243,0.04975405,2512.7,2512.3,3.98034533]
[1748873473506,0.04975405,2512.7,2512.6,3.97994109]
[1748873473848,0.02,2512.9,2512.5,3.98000907]
[1748873474063,3.98019583,2512.5,2512.0,3.98082406]
[1748873474283,0.55,2512.3,2512.1,0.37984776]
[1748873474485,0.04976527,2512.2,2511.6,5.33743427]
[1748873474654,0.04976527,2512.2,2512.0,3.98080687]
[1748873474842,0.04976527,2512.2,2511.4,0.7895]
[1748873475058,3.9813672,2511.7,2511.5,0.38009332]
[1748873475316,0.50290819,2511.6,2511.4,3.98168438]
[1748873475449,0.04977147,2511.6,2511.3,4.563]
[1748873475649,0.04977147,2511.6,2511.4,3.98183244]
[1748873476148,0.04977147,2511.6,2511.5,3.98168425]
[1748873476361,0.04977299,2511.8,2511.7,3.9813672]
[1748873476597,0.55,2511.8,2511.5,0.37999884]
[1748873476771,0.04977409,2511.7,2511.6,3.98152572]
[1748873476973,0.04977051,2511.9,2511.5,4.563]
[1748873477190,0.04977051,2511.9,2511.6,3.9814506]
[1748873477559,0.04977051,2511.9,2511.7,3.98127501]
[1748873477768,0.04977051,2511.9,2511.6,3.98143798]
[1748873478011,0.04977051,2511.9,2511.5,4.563]
[1748873478297,0.04977051,2511.9,2511.7,3.98128295]
[1748873478454,0.04977051,2511.9,2511.6,3.98143565]
[1748873478788,0.04977051,2511.9,2511.5,8.5446488]
[1748873478948,0.04977051,2511.9,2511.6,3.98151566]
[1748873479161,10.25898108,2511.7,2510.5,3.98311666]
[1748873479488,0.04977677,2511.6,2511.1,0.37988085]
[1748873479785,0.04977677,2511.6,2511.3,3.98192892]
[1748873479984,0.04977677,2511.6,2511.2,3.98207649]
[1748873480208,0.55,2511.5,2511.0,3.9823921]
[1748873480368,0.8347818,2511.4,2511.1,8.54531187]
[1748873480892,0.8347818,2511.4,2511.1,4.563]
[1748873481126,0.8073,2512.2,2512.1,3.98069845]
[1748873481410,10.25898108,2512.6,2512.0,3.98086741]
[1748873481411,10.25898108,2512.3,2512.0,4.563]
[1748873481565,0.04976176,2512.2,2511.7,3.9812675]
[1748873481768,0.59976176,2512.2,2511.8,4.563]
[1748873481989,0.59976176,2512.2,2511.9,3.9810502]
[1748873482208,0.04976176,2512.2,2511.8,4.563]
[1748873482412,0.04976176,2512.2,2511.9,3.9810502]
[1748873482706,0.04976176,2512.2,2511.9,3.98096515]
[1748873482900,0.04976176,2512.2,2511.8,4.563]
[1748873483103,0.04976176,2512.2,2512.1,3.98073325]
[1748873483508,0.55,2512.3,2512.0,3.98085398]
[1748873483708,0.04976235,2512.2,2512.0,3.98085398]
[1748873483907,0.04976235,2512.4,2512.3,3.98041635]
[1748873484138,0.04975591,2512.8,2512.4,3.98025792]
[1748873484272,0.04975591,2512.8,2512.4,3.98018183]
[1748873484468,0.04975591,2512.8,2512.5,3.98008646]
[1748873484791,0.04975591,2512.8,2512.5,3.97999047]
[1748873484792,1.21523961,2512.8,2512.5,3.97999047]
[1748873484992,1.21523961,2512.8,2512.6,3.97994109]
[1748873485191,1.21523961,2512.8,2512.4,4.563]
[1748873485506,0.04975591,2512.8,2512.7,3.9797827]
[1748873485739,0.02,2512.9,2512.8,3.97962432]
[1748873485887,0.02,2512.9,2512.8,8.54262432]
[1748873486820,0.8023,2512.8,2512.4,3.98023755]
[1748873487162,0.8023,2512.8,2511.8,3.98108108]
[1748873487163,3.9803605,2512.4,2511.8,3.98108108]
[1748873487325,10.25898108,2512.2,2511.9,4.563]
[1748873487474,0.85206462,2512.1,2511.6,1.356]
[1748873487822,0.55,2512.0,2511.7,4.563]
[1748873487972,0.04976848,2511.9,2511.8,3.98110871]
[1748873488180,0.04976749,2512.0,2511.7,8.54423835]
[1748873488486,0.04976749,2512.0,2511.7,4.563]
[1748873488688,0.55,2512.4,2511.7,4.563]
[1748873488689,1.3557,2512.4,2511.7,4.563]
[1748873488873,0.04976165,2512.6,2511.8,0.7665]
[1748873489074,0.04976165,2512.6,2512.3,3.98029681]
[1748873489280,1.66219588,2512.6,2512.2,4.562]
[1748873489968,10.25898108,2512.4,2511.8,2.1225]
[1748873490215,0.04976163,2512.3,2512.1,3.98065132]
[1748873490518,0.04976163,2512.3,2511.5,0.765]
[1748873490669,0.04976163,2512.3,2512.1,3.98069332]
[1748873490876,0.55,2512.2,2511.6,3.98139822]
[1748873491071,11.12684682,2512.1,2511.9,3.98096171]
[1748873491308,0.8181,2512.1,2511.8,3.98114654]
[1748873491480,0.049764,2512.2,2512.1,3.98073325]
[1748873491684,1.3681,2512.5,2512.1,4.562]
[1748873491685,0.86786153,2512.5,2512.1,4.562]
[1748873491886,2.36189411,2512.5,2512.1,4.562]
[1748873492085,0.86786153,2512.5,2512.2,3.98050465]
[1748873492289,0.86786153,2512.5,2512.1,8.54263884]
[1748873492496,0.86786153,2512.5,2512.3,3.9802751]
[1748873492818,0.86786153,2512.5,2512.1,4.562]
[1748873492819,0.04975578,2512.6,2512.4,3.9801862]
[1748873493016,4.02976173,2512.6,2511.5,5.3376756]
[1748873493197,14.78924087,2512.4,2511.7,3.9813672]
[1748873493401,0.7791,2512.2,2511.9,3.98104425]
[1748873493600,0.04976391,2512.1,2511.9,3.98104425]
[1748873493790,0.04976391,2512.1,2512.0,3.98089171]
[1748873494133,0.04976391,2512.1,2511.9,3.98096261]
[1748873494318,0.04976391,2512.1,2511.8,8.5431153]
[1748873494487,0.04976391,2512.1,2511.9,4.562]
[1748873494679,0.5307026,2512.1,2511.9,4.562]
[1748873494897,0.5307026,2512.1,2511.4,0.7942]
[1748873494898,0.55,2512.0,2511.1,0.7568]
[1748873495090,0.04977211,2511.9,2511.2,18.28044259]
[1748873495307,0.04977211,2511.9,2511.6,3.98143225]
[1748873495531,0.04977211,2511.9,2511.6,4.562]
[1748873495750,0.04977211,2511.9,2511.2,1.356]
[1748873495751,4.53122886,2511.8,2511.2,1.356]
[1748873496053,0.81197488,2511.7,2511.3,8.5439946]
[1748873496336,0.81197488,2511.7,2511.4,8.54381752]
[1748873496747,0.81197488,2511.7,2511.4,4.562]
[1748873496943,0.7571,2512.0,2511.4,4.562]
[1748873497118,0.04976832,2511.9,2511.4,4.562]
[1748873497304,0.04976832,2511.9,2511.6,3.98145868]
[1748873497847,10.80898108,2511.8,2509.6,3.98459636]
[1748873498140,0.04977487,2511.7,2511.2,3.98213943]
[1748873498444,0.04977487,2511.7,2511.3,4.563]
[1748873498638,4.53166094,2511.6,2511.2,1.356]
[1748873498833,0.04977756,2511.5,2511.2,5.919]
[1748873499155,0.55,2511.4,2510.7,9.351]
[1748873499465,10.25898108,2511.1,2510.8,4.563]
[1748873499743,0.04978619,2511.0,2510.8,8.54579196]
[1748873499974,3.98318742,2510.6,2510.1,0.7835]
[1748873500271,0.55,2510.3,2510.1,0.02]
[1748873500442,0.04980246,2510.3,2510.1,0.02]
[1748873500619,0.59979985,2510.7,2510.1,4.583]
[1748873500827,0.55,2510.4,2510.1,0.02]
[1748873501145,0.04980363,2510.3,2510.1,4.583]
[1748873501369,0.7673,2510.2,2510.1,0.02]
[1748873501516,1.53401691,2510.3,2510.2,3.98374631]
[1748873501707,1.53401691,2510.3,2510.1,0.02]
[1748873502148,0.04980363,2510.3,2510.2,3.98374631]
[1748873502348,0.04980363,2510.3,2510.1,0.02]
[1748873502349,0.55,2510.3,2510.1,0.02]
[1748873502558,0.04980274,2510.2,2510.1,0.02]
[1748873502878,14.79272739,2510.2,2510.1,0.02]
[1748873503012,25.08468024,2510.2,2510.1,0.02]
[1748873503958,0.55,2509.4,2509.1,0.02]
[1748873504138,0.04982185,2509.3,2509.1,0.02]
[1748873504706,0.04982396,2509.4,2509.3,3.98517514]
[1748873504918,0.04981788,2509.6,2509.2,3.98524942]
[1748873505153,0.04981788,2509.6,2509.3,3.98502161]
[1748873505447,0.04981447,2509.8,2509.7,3.98453998]
[1748873505659,0.0498071,2510.1,2509.9,3.98422247]
[1748873505851,10.25898108,2510.3,2509.8,4.565]
[1748873506034,5.06445721,2510.2,2509.2,12.74759664]
[1748873506251,3.98394679,2510.1,2509.6,3.98461866]
[1748873506553,1.0806843,2510.2,2509.2,4.565]
[1748873506554,0.55,2509.9,2509.2,4.565]
[1748873506859,0.04981449,2509.8,2509.5,3.98475821]
[1748873507060,0.04981449,2509.8,2509.2,4.565]
[1748873507368,1.6129141,2509.8,2509.5,3.98474157]
[1748873507525,0.55,2509.7,2509.3,4.565]
[1748873507730,10.25898108,2509.4,2509.1,0.02]
[1748873507954,0.55,2509.2,2509.1,0.02]
[1748873508133,0.04982667,2509.3,2509.1,0.02]
[1748873508342,1.3507,2509.6,2509.1,0.02]
[1748873508584,0.04982003,2509.5,2509.3,3.98506563]
[1748873508715,0.04981407,2509.7,2509.4,4.565]
[1748873508917,0.04981407,2509.7,2509.6,3.98469875]
[1748873509232,0.8007,2510.0,2509.7,3.98445241]
[1748873509447,0.04980837,2509.9,2509.5,1.357]
[1748873509640,1.18336132,2510.0,2509.6,3.98464456]
[1748873509839,1.18336132,2510.0,2509.8,3.98429887]
[1748873510141,0.38266132,2510.0,2509.8,3.98430601]
[1748873510338,0.04980451,2510.2,2509.9,3.98418117]
[1748873510633,0.04980451,2510.2,2509.9,8.55008564]
[1748873510842,10.25898108,2511.1,2510.4,3.98335567]
[1748873511181,0.04979357,2510.8,2510.6,3.98299847]
[1748873511375,1.78759331,2510.9,2510.7,3.98295296]
[1748873511533,0.33285124,2510.9,2510.8,3.98279432]
[1748873512048,0.7917,2512.3,2511.8,3.98120869]
[1748873512264,0.04976681,2512.2,2511.8,4.566]
[1748873512419,0.04976681,2512.2,2511.8,8.54720869]
[1748873512603,0.04976681,2512.2,2511.8,4.566]
[1748873513252,0.04976681,2512.2,2511.8,8.54720869]
[1748873514320,0.04976482,2512.2,2511.8,8.54720869]
[1748873514720,0.04976482,2512.2,2511.8,4.565]
[1748873514721,10.3087459,2512.2,2511.8,4.565]
[1748873515023,0.0697662,2511.9,2511.8,4.565]
[1748873515530,0.0697663,2511.9,2511.8,8.54620869]
[1748873515846,0.0697663,2511.9,2511.8,4.565]
[1748873516075,0.8129,2511.9,2511.7,1.356]
[1748873516276,0.53438742,2511.8,2511.7,4.565]
[1748873516656,0.86266962,2511.9,2511.7,4.565]
[1748873516871,4.53129169,2511.8,2511.5,1.356]
[1748873517073,0.04977578,2511.7,2511.5,1.356]
[1748873517681,0.04977578,2511.7,2511.6,3.98152572]
[1748873517885,0.04977045,2511.8,2511.7,3.9813672]
[1748873518169,0.02,2511.9,2511.8,3.98120869]
[1748873518366,0.02,2511.9,2511.7,8.54628745]
[1748873518972,0.02,2511.9,2511.8,3.98120869]
[1748873519589,0.02,2511.9,2511.8,9.90120869]
[1748873520380,0.02,2511.9,2511.6,1.356]
[1748873520536,0.02,2511.9,2511.8,4.564]
[1748873520740,0.02,2511.9,2511.6,1.356]
[1748873520943,0.8254,2511.8,2511.7,4.564]
[1748873521245,0.8254,2511.8,2511.6,1.356]
[1748873521439,0.04977102,2511.7,2511.6,1.356]
[1748873521792,0.04977102,2511.7,2511.6,4.564]
[1748873521979,0.02,2511.9,2511.7,3.9813672]
[1748873522250,0.02,2511.9,2511.8,3.98120869]
[1748873522471,0.02,2511.9,2511.8,5.92]
[1748873522796,0.55,2511.7,2511.2,1.356]
[1748873522970,0.55,2511.4,2511.1,3.98231547]
[1748873523182,0.55,2511.4,2510.9,5.33859795]
[1748873523183,0.04978074,2511.3,2510.9,1.356]
[1748873523485,0.04978074,2511.3,2511.0,4.564]
[1748873523797,4.03183111,2511.3,2510.9,1.356]
[1748873523947,0.04978074,2511.3,2511.2,3.98215992]
[1748873524171,0.04977777,2511.7,2511.6,3.98152572]
[1748873524387,0.04977166,2511.7,2511.6,4.563]
[1748873524695,0.04977166,2511.7,2511.6,8.54452572]
[1748873524879,0.04976933,2511.7,2511.6,8.54452572]
[1748873525041,14.30988322,2511.9,2511.3,1.356]
[1748873525384,1.43098832,2511.8,2511.6,4.563]
[1748873525538,4.03113812,2511.7,2511.6,4.563]
[1748873525968,0.04977092,2511.7,2511.6,4.563]
[1748873526373,0.04977092,2511.7,2511.3,1.356]
[1748873526374,3.98177597,2511.5,2511.3,1.356]
[1748873526646,0.0497774,2511.4,2511.3,1.356]
[1748873526850,0.0497774,2511.4,2511.3,5.919]
[1748873527389,0.0497774,2511.4,2510.8,3.98272559]
[1748873527390,3.98201437,2511.3,2510.8,3.98272559]
[1748873527693,0.04978195,2511.2,2511.0,1.356]
[1748873528070,0.02,2511.9,2511.8,3.98120869]
[1748873528259,0.02,2511.9,2511.7,8.54429172]
[1748873528502,0.02,2511.9,2511.7,4.563]
[1748873528686,0.02,2511.9,2511.7,8.54435417]
[1748873528890,0.02,2511.9,2511.7,4.563]
[1748873529461,0.02,2511.9,2511.8,5.33720869]
[1748873529779,0.02,2511.9,2511.8,6.15390869]
[1748873530164,0.02,2511.9,2511.8,10.71690869]
[1748873530508,0.02,2511.9,2511.8,9.90020869]
[1748873531015,0.02,2511.9,2511.8,27.25590869]
[1748873531176,0.7523,2513.5,2512.8,3.97962432]
[1748873531384,0.7523,2513.5,2512.8,9.89862432]
[1748873531566,0.83033889,2513.8,2512.8,9.89862432]
[1748873533476,4.80850316,2513.8,2512.8,9.89862432]
[1748873533695,8.0,2513.6,2512.8,9.89862432]
[1748873533885,0.04973304,2513.5,2512.8,9.89862432]
[1748873534071,0.04973304,2513.6,2512.8,9.89862432]
[1748873534298,0.02,2513.9,2512.8,9.89862432]
[1748873534499,14.28683273,2513.8,2512.8,9.89862432]
[1748873534698,10.25898108,2513.8,2512.8,9.89862432]
[1748873535102,14.23711569,2513.8,2512.8,9.89862432]
[1748873535303,10.25898108,2513.8,2512.8,9.89862432]
[1748873535826,0.04973305,2513.7,2512.8,3.97962432]
[1748873536057,11.97920641,2513.1,2512.8,1.355]
[1748873536193,0.04975026,2513.0,2512.8,1.355]
[1748873536519,0.04975026,2513.0,2512.8,5.33462432]
[1748873536688,0.04974426,2513.3,2512.8,1.355]
[1748873536894,8.0,2513.1,2512.8,1.355]
[1748873537082,0.04974426,2513.0,2512.8,5.33462432]
[1748873537277,0.04974426,2513.2,2512.8,5.33462432]
[1748873538116,8.04974426,2513.2,2512.8,5.916]
[1748873538311,8.04974426,2513.2,2512.8,9.89562432]
[1748873538516,4.02874761,2513.2,2512.8,1.355]
[1748873538725,0.04974426,2513.2,2512.8,5.916]
[1748873538892,0.04974581,2513.2,2512.8,9.89562432]
[1748873539292,0.04973948,2513.6,2512.8,9.89562432]
[1748873539518,0.02,2513.9,2512.8,10.70452432]
[1748873539721,0.02,2513.9,2513.8,3.97804121]
[1748873539912,0.02,2513.9,2513.8,9.89304121]
[1748873540804,0.02,2513.9,2513.8,19.05634249]
[1748873541227,1.13,2514.9,2514.8,3.97645936]
[1748873541598,1.13,2514.9,2514.7,4.56]
[1748873541794,1.13,2514.9,2514.0,0.8299]
[1748873541976,1.13,2514.9,2514.1,5.914]
[1748873542224,1.13,2514.9,2514.3,3.97725012]
[1748873542391,1.13,2514.9,2514.1,5.914]
[1748873542579,1.13,2514.9,2514.7,3.97655976]
[1748873542779,1.13,2514.9,2514.8,8.53545936]
[1748873544254,1.13,2514.9,2514.8,16.53545936]
[1748873544406,1.13,2514.9,2514.8,28.09894044]
[1748873544719,0.02,2515.9,2515.8,3.97487876]
[1748873544935,0.02,2515.9,2515.8,5.911]
[1748873545119,0.02,2515.9,2515.0,8.591]
[1748873545120,0.8219,2515.8,2515.0,8.591]
[1748873545298,0.8219,2515.8,2515.2,1.354]
[1748873545481,3.97530597,2515.6,2515.2,1.354]
[1748873545758,4.42269127,2515.5,2515.0,9.945]
[1748873546021,3.9755918,2515.4,2515.0,9.945]
[1748873546183,0.04970106,2515.3,2515.0,8.591]
[1748873546386,0.04970106,2515.3,2515.0,13.148]
[1748873546624,0.55,2515.0,2514.9,1.354]
[1748873546922,0.98604758,2515.0,2514.9,1.354]
[1748873547382,0.59970758,2515.0,2514.9,1.354]
[1748873547583,4.57585072,2515.0,2514.9,1.354]
[1748873547882,0.04970758,2515.0,2514.9,1.354]
[1748873548110,0.55,2515.0,2514.9,1.354]
[1748873548316,4.52614314,2515.0,2514.9,1.354]
[1748873548502,9.4865101,2515.0,2514.9,1.354]
[1748873549322,8.9365101,2515.0,2514.9,1.354]
[1748873549624,12.91265324,2515.0,2514.9,1.354]
[1748873549938,13.46265324,2515.0,2514.9,1.354]
[1748873550082,8.9365101,2515.0,2514.9,1.354]
[1748873550286,13.46265324,2515.0,2514.9,1.354]
[1748873550489,13.46265324,2515.0,2514.6,4.557]
[1748873550490,0.55,2514.9,2514.6,4.557]
[1748873550709,0.04971133,2514.8,2514.6,4.556]
[1748873550904,8.0,2515.0,2514.7,3.97650091]
[1748873551239,3.97552302,2515.4,2514.6,8.53270393]
[1748873551240,0.7607,2515.4,2514.6,8.53270393]
[1748873551437,0.04970042,2515.3,2514.6,4.556]
[1748873551736,0.04970042,2515.3,2514.9,3.97622422]
[1748873551892,0.04970042,2515.3,2515.0,4.556]
[1748873552300,0.04970042,2515.3,2515.0,8.53212097]
[1748873553036,0.04970042,2515.3,2515.0,4.556]
[1748873553340,0.04970042,2515.3,2515.1,3.97588882]
[1748873553506,0.04970042,2515.3,2515.0,8.53206014]
[1748873553833,0.04970042,2515.3,2515.0,4.556]
[1748873554034,0.55,2515.1,2514.6,3.97670066]
[1748873554208,0.04970419,2515.0,2514.7,5.908]
[1748873554414,0.90967461,2515.0,2514.7,1.353]
[1748873554615,0.90967461,2515.0,2514.8,4.555]
[1748873555025,0.7684,2514.9,2514.2,3.97729431]
[1748873555222,4.0262488,2514.8,2514.3,9.88524428]
[1748873555435,0.47946488,2514.7,2513.7,0.7512]
[1748873555734,3.97782574,2514.0,2513.5,5.33148361]
[1748873555936,0.04972594,2514.1,2513.7,3.97810662]
[1748873556114,8.04972428,2514.3,2513.6,4.555]
[1748873556315,8.04972428,2514.3,2513.7,3.97819946]
[1748873556636,13.36178438,2514.3,2513.3,0.7512]
[1748873556870,3.97765061,2514.1,2513.6,3.97834333]
[1748873556995,0.04972447,2514.0,2513.5,3.97851405]
[1748873557203,4.02713381,2514.2,2513.7,3.97811683]
[1748873557548,0.55,2514.0,2513.3,0.7512]
[1748873557752,0.04972961,2513.9,2513.4,1.353]
[1748873557907,0.04972961,2513.9,2513.5,3.97851601]
[1748873558136,0.04972961,2513.9,2513.7,3.97812746]
[1748873558528,13.36368664,2514.2,2513.4,5.908]
[1748873558529,0.7711,2514.5,2513.8,4.555]
[1748873558837,8.04972009,2514.4,2514.0,3.97762896]
[1748873559040,0.04972009,2514.4,2514.1,3.97742682]
[1748873559204,0.04972009,2514.4,2514.3,3.97725012]
[1748873559403,0.04971691,2514.4,2514.2,4.555]
[1748873560073,0.7877,2514.8,2514.2,5.908]
[1748873560336,4.76349657,2515.3,2514.8,3.97639828]
[1748873560550,0.92858028,2515.2,2514.7,4.555]
[1748873560716,0.83740426,2515.3,2514.8,4.555]
[1748873560916,0.7877,2515.3,2515.0,3.97598551]
[1748873561240,4.02491575,2515.6,2515.1,3.97589691]
[1748873561241,0.04969945,2515.4,2515.1,3.97589691]
[1748873561439,0.04969945,2515.4,2515.0,1.353]
[1748873561755,0.8061,2515.6,2515.4,3.97551085]
[1748873561920,3.99474116,2515.9,2515.4,4.555]
[1748873561921,4.02461809,2515.8,2515.4,4.555]
[1748873562256,12.85760873,2515.7,2515.4,4.555]
[1748873562433,0.04969253,2515.6,2515.4,4.555]
[1748873562638,0.04969253,2515.6,2515.0,5.32911577]
[1748873562639,0.55,2515.5,2514.6,4.77773458]
[1748873562803,4.72837503,2515.3,2514.8,5.32938321]
[1748873563009,0.04970317,2515.2,2514.8,5.32938321]
[1748873563633,0.04970317,2515.2,2514.9,3.97626493]
[1748873563835,0.52749792,2515.2,2514.8,1.353]
[1748873564141,0.52749792,2515.2,2514.8,5.907]
[1748873564351,13.09991473,2515.9,2515.1,3.97598505]
[1748873564352,4.78804037,2515.8,2515.1,3.97598505]
[1748873564641,12.02477357,2515.7,2515.2,3.9757916]